Cogmind - Beta 11.1 @@@ ROGUE MODE // 2022.04.27 @ 10:52:03 Player: Demise Result: Destroyed by 8R-AWN with 8R-AWN's Boregun Performance ------------- Evolutions (0) 0 Regions Visited (3) 600 Robots Destroyed (32) 160 Value Destroyed (661) 661 Prototype IDs (40) 800 Alien Tech Used (0) 0 Bonus (300) 300 TOTAL SCORE: 2521 Bonus ------- Aligned with FarCom 300 Cogmind --------- Core Integrity 0/250 Matter 219/300 Energy 100/100 System Corruption 0% Temperature Cool (0) Movement Rolling (140) Ox4 Location -10/Exiles Parts ------- > --- POWER (1) -------- (None) > --- PROPULSION (2) --- Wheel > --- UTILITY (2) ------ High-capacity Storage Unit Machine Analyzer > --- WEAPON (2) ------- Light Assault Rifle > --- INVENTORY (20) --- Compact Wheel Small Matter Pod (50) Medium Matter Pod (100) Trap Extractor (0/4) EM Pulse Gun Guided Plasma Cannon Light Assault Rifle Improved Assault Rifle Mini Grenade Launcher Mini Grenade Launcher Mini Grenade Launcher Datajack Peak State ------------ > --- POWER ------------ Ion Engine > --- PROPULSION ------- Light Treads Compact Wheel > --- UTILITY ---------- Large Storage Unit Machine Analyzer > --- WEAPON ----------- Improved Assault Rifle Improved Assault Rifle > --- INVENTORY -------- Compact Wheel Weight Redist. System Experimental Sensor Array Signal Interpreter Trap Extractor Trap Extractor Light Assault Rifle Light Assault Rifle Improved Assault Rifle Improved Assault Rifle Mini Grenade Launcher Mini Grenade Launcher Mini Grenade Launcher Datajack Hammer [Rating: 16] Favorites ----------- Power Ion Engine Engine Ion Engine Power Core Light Nuclear Core Propulsion Wheel Treads Light Treads Wheel Wheel Utility Large Storage Unit Device Trap Extractor Storage Large Storage Unit Processor Machine Analyzer Weapon Improved Assault Rifle Energy Gun EM Pulse Gun Ballistic Gun Improved Assault Rifle Launcher Mini Grenade Launcher Special Melee Weapon Datajack Build | -11 -10 -10 -10 ------- Run | Scr Mat Min Exi Slots Evolved . | . . . . Power . | . . . . Propulsion . | . . . . Utility . | . . . . Weapon . | . . . . Parts Attached 51 | 8 28 5 10 Power 7 | 1 6 . . Engine 6 | 1 5 . . Core 1 | . 1 . . Reactor . | . . . . Propulsion 9 | 2 3 3 1 Treads 3 | 1 2 . . Leg . | . . . . Wheel 6 | 1 1 3 1 Hover . | . . . . Flight . | . . . . Utility 13 | 2 6 . 5 Device 9 | 2 4 . 3 Storage 3 | . 1 . 2 Processor 1 | . 1 . . Hackware . | . . . . Protection . | . . . . Artifact . | . . . . Weapon 22 | 3 13 2 4 Energy Gun 3 | 2 . 1 . Energy Cannon . | . . . . Ballistic Gun 14 | 1 10 1 2 Ballistic Cannon . | . . . . Launcher 2 | . 1 . 1 Special Weapon . | . . . . Impact Weapon . | . . . . Slashing Weapon . | . . . . Piercing Weapon . | . . . . Special Melee Weapon 3 | . 2 . 1 Unidentified Prototypes 1 | . 1 . . Parts Lost 10 | . 5 1 4 Power 2 | . 1 . 1 Propulsion 4 | . 2 1 1 Utility 1 | . 1 . . Weapon 3 | . 1 . 2 Highest Loss Streak 4 | . 2 1 4 To Critical Strikes 2 | . . . 2 Average Slot Usage (%) 96 | . 94 100 99 Engine 10 | . 7 14 14 Core 2 | . 5 . . Treads 9 | . 14 9 . Wheel 17 | . 10 18 28 Device 10 | . 16 . 4 Storage 10 | . 11 14 8 Processor 6 | . . 14 14 Ballistic Gun 22 | . 24 28 16 Launcher 1 | . . . 3 Special Melee Weapon 3 | . 1 . 8 Naked Turns . | . . . . Heaviest Build 51 | 11 33 31 51 Greatest Support 32 | 20 20 32 26 Greatest Overweight (x) 2 | . 2 1 2 Average Overweight (x) . | . 1 . . Largest Inventory Capacity 20 | 5 15 15 20 Average Capacity 13 | 5 13 15 13 Most Carried 16 | 4 15 15 16 Average Carried 11 | 3 12 14 9 Final Capacity 20 | 5 15 15 20 Final Carried 15 | 4 15 15 12 Class Distribution -------------------- 76% | Mutant 13% | Scavenger-Mutant 9% | Trapper-Mutant Dominant Class ---------------- Mutant | -10/Materials Mutant | -10/Mines Mutant | -10/Exiles Resources | -11 -10 -10 -10 ----------- Run | Scr Mat Min Exi Matter Collected 1120 | 298 581 155 86 Remotely . | . . . . Salvage Created 1138 | 151 897 89 1 Parts 76 | 11 62 3 . Haulers Intercepted 1 | . 1 . . Recyclers Shooed . | . . . . Parts Field Recycled . | . . . . Retrieved Matter . | . . . . Parts Self-Destructed . | . . . . Prevented . | . . . . Kills | -11 -10 -10 -10 ------- Run | Scr Mat Min Exi Combat Hostiles Destroyed 18 | . 13 3 2 Guns 14 | . 11 3 . AOE 4 | . 2 . 2 Classes Destroyed 12 | 2 8 1 1 Worker 2 | . 2 . . Builder 1 | . 1 . . Tunneler 3 | 3 . . . Hauler 1 | . 1 . . Recycler 4 | 1 3 . . Mechanic 1 | . 1 . . Operator 2 | . 2 . . Watcher 2 | . 2 . . Swarmer 3 | . 3 . . Grunt 12 | . 10 2 . Demolisher 1 | . . 1 . Assembled 2 | . . . 2 Best Kill Streak 5 | 2 5 2 2 Combat Bots Only 5 | . 5 2 2 Max Kills in Single Turn 1 | 1 1 1 1 Gunslinging . | . . . . Exploded 1 | . 1 . 1 Melee . | . . . . Uniques/NPCs Destroyed . | . . . . Combat | -11 -10 -10 -10 -------- Run | Scr Mat Min Exi Damage Taken 1533 | 28 803 243 459 Core 266 | . 86 46 134 Absorbed by Shields . | . . . . Regen/Repaired (Parts) 92 | . 92 . . Core Remaining (%) 100 | 100 . . . Volleys Fired 108 | 6 76 10 16 Largest 2 | 2 2 2 2 Hottest 63 | 60 50 63 46 Shots Fired 202 | 12 145 20 25 Gun 196 | 12 142 20 22 Cannon . | . . . . Launcher 6 | . 3 . 3 Special . | . . . . Kinetic 189 | 6 142 19 22 Thermal . | . . . . Explosive 6 | . 3 . 3 Electromagnetic 7 | 6 . 1 . Robot Hit Streak 14 | 7 9 12 14 Robot Miss Streak 4 | 1 4 2 1 Penetration Max . | . . . . Secondary Targets 4 | . 3 1 . Max Gunslinging Chain 1 | . 1 1 . Shots Hit Robots 132 | 8 85 16 23 Core Hits 63 | 5 48 6 4 Critical Kills . | . . . . Critical Parts Destroyed . | . . . . Critical Strikes . | . . . . Melee Attacks 5 | . 1 . 4 Impact . | . . . . Slashing . | . . . . Piercing . | . . . . Sneak Attacks 5 | . 1 . 4 Combat Hostiles . | . . . . Follow-up Attacks . | . . . . Damage Inflicted 1790 | 107 1113 235 335 Guns 1504 | 86 956 235 227 Cannons . | . . . . Explosions 286 | 21 157 . 108 Melee . | . . . . Ramming . | . . . . Kinetic 1452 | 34 956 235 227 Thermal 21 | 21 . . . Explosive 265 | . 157 . 108 Electromagnetic 52 | 52 . . . Impact . | . . . . Slashing . | . . . . Piercing . | . . . . Highest Corruption . | . . . . Average Corruption . | . . . . Corruption Purged . | . . . . Corruption Blocked . | . . . . Overload Shots . | . . . . Overflow Damage . | . . . . Projectiles . | . . . . Explosions . | . . . . Melee . | . . . . Knockbacks . | . . . . Impact . | . . . . Kinetic . | . . . . Secondary . | . . . . Self-Inflicted Damage 44 | 29 15 . . Shots 3 | 1 2 . . Rammed . | . . . . Targets Rammed . | . . . . Kicked . | . . . . Crushed . | . . . . Highest Temperature 18 | 12 18 4 4 Average Temperature 5 | 12 6 2 1 Received Heat Transfer 336 | . 294 42 . Siege Activations . | . . . . Robots Corrupted . | . . . . Combat Hostiles . | . . . . Parts Fried . | . . . . Impact Corruptions . | . . . . Robots Melted . | . . . . Combat Hostiles . | . . . . Parts Melted . | . . . . Heat Transferred 50 | 50 . . . Parts Sabotaged . | . . . . Parts Stolen . | . . . . Parts Stripped . | . . . . Power Chain Reactions 1 | 1 . . . Missiles Intercepted . | . . . . Alert | -11 -10 -10 -10 ------- Run | Scr Mat Min Exi Peak Influence 251 | 20 251 136 . Initial 61 | . 13 61 . Average 85 | 8 90 78 . Maximum Alert Level 1 | . 1 . . Low Security (%) 99 | 100 99 100 . Level 1 . | . . . . Level 2 . | . . . . Level 3 . | . . . . Level 4 . | . . . . Level 5 . | . . . . High Security . | . . . . Max Security . | . . . . Squads Dispatched 5 | . 5 . . Investigation 3 | . 3 . . Extermination . | . . . . Reinforcement 2 | . 2 . . Assault . | . . . . Garrison . | . . . . Intercept . | . . . . Searches Triggered . | . . . . Construction Impeded . | . . . . Haulers Reinforced . | . . . . Active Scanning Responses . | . . . . Cargo Convoy Interrupts . | . . . . Stealth | -11 -10 -10 -10 --------- Run | Scr Mat Min Exi Distress Signals 1 | . 1 . . Communications Jammed . | . . . . Distress Signals . | . . . . Times Spotted 36 | . 28 5 3 Peak Tracking Total 9 | . 4 2 9 Tactical Retreats 3 | . 2 1 . Traps | -11 -10 -10 -10 ------- Run | Scr Mat Min Exi Traps Triggered 2 | . 2 . . Indirectly . | . . . . Trap Hack Attempts 60 | . 60 . . Triggered 1 | . 1 . . Disarmed 1 | . 1 . . Reprogrammed 7 | . 7 . . Reused 4 | . . . 4 Traps Extracted 8 | . 7 . 1 Installed 6 | . . . 6 Triggered . | . . . . Most Traps Carried 7 | . 7 5 5 Exploded 3 | . . . 3 Machines | -11 -10 -10 -10 ---------- Run | Scr Mat Min Exi Machines Disabled 4 | . . . 4 Max in Single Turn 2 | . . . 2 Machines Sabotaged . | . . . . Garrisons Compromised . | . . . . Overloaded Fab Kills . | . . . . Hacking | -11 -10 -10 -10 --------- Run | Scr Mat Min Exi Machines Accessed 10 | . 8 . 2 Terminals 5 | . 5 . . Fabricators . | . . . . Repair Stations 1 | . 1 . . Recycling Units 2 | . 2 . . Scanalyzers . | . . . . Garrison Access . | . . . . Total Hacks 29 | . 27 . 2 Successful 17 | . 15 . 2 Failed 12 | . 12 . . Catastrophic 1 | . 1 . . Database Lockouts . | . . . . Manual 18 | . 17 . 1 Terminals 17 | . 17 . . Fabricators . | . . . . Repair Stations 3 | . 3 . . Recycling Units 7 | . 7 . . Scanalyzers . | . . . . Garrison Access . | . . . . Terminal Hacks 6 | . 4 . 2 Record 1 | . . . 1 Prototype ID Bank 1 | . 1 . . Branch Access Points 1 | . 1 . . Terminal Index 1 | . 1 . . Locate Traps 1 | . 1 . . EX-Prototype ID Bank 1 | . . . 1 Fabricator Hacks . | . . . . Repair Station Hacks 2 | . 2 . . Scan Component 1 | . 1 . . Repair 1 | . 1 . . Recycling Unit Hacks 2 | . 2 . . Retrieve Components 2 | . 2 . . Scanalyzer . | . . . . Garrison Access Hacks . | . . . . Unauthorized Hacks 7 | . 7 . . Terminals 4 | . 4 . . Assimilate 1 | . 1 . . Botnet 3 | . 3 . . Fabricators . | . . . . Repair Stations . | . . . . Recycling Units 3 | . 3 . . Recyclers 1 | . 1 . . Mask 1 | . 1 . . Tunnel 1 | . 1 . . Scanalyzers . | . . . . Garrison Access . | . . . . Data Cores Recovered . | . . . . Used . | . . . . Hacking Detections 6 | . 6 . . Full Trace Events 2 | . 2 . . Feedback Events . | . . . . Feedback Blocked . | . . . . Robot Schematics Acquired . | . . . . Robots Built . | . . . . Authchips . | . . . . Time . | . . . . Total Robot Build Rating . | . . . . Part Schematics Acquired . | . . . . Parts Built . | . . . . Authchips . | . . . . Time . | . . . . Total Part Build Rating . | . . . . Parts Repaired 1 | . 1 . . Time 26 | . 26 . . Parts Recycled . | . . . . Recycled Matter . | . . . . Retrieved Matter . | . . . . Retrieved Components 10 | . 10 . . Parts Scanalyzed . | . . . . Part Schematics Acquired . | . . . . Parts Damaged . | . . . . Bothacking | -11 -10 -10 -10 ------------ Run | Scr Mat Min Exi Used RIF Installer . | . . . . Robots Hacked 4 | . . . 4 Non-combat 3 | . . . 3 Combat 1 | . . . 1 Robot Hacks Applied 4 | . . . 4 parse_system 4 | . . . 4 Relay Couplers Released . | . . . . Fabnet Peak Effective % . | . . . . Robots Rewired . | . . . . Allies Hacked . | . . . . Hacks Repelled . | . . . . Allies | -11 -10 -10 -10 -------- Run | Scr Mat Min Exi Total Allies . | . . . . Largest Group . | . . . . Highest-Rated Group . | . . . . Highest-Rated Ally . | . . . . Total Orders . | . . . . Ally Attacks . | . . . . Total Damage . | . . . . Kills . | . . . . Allies Corrupted . | . . . . Allies Melted . | . . . . Intel | -11 -10 -10 -10 ------- Run | Scr Mat Min Exi Robot Analysis Total . | . . . . Derelict Logs Recovered 2 | . . 2 . Drone Launches . | . . . . Drone Recoveries . | . . . . Exploration | -11 -10 -10 -10 ------------- Run | Scr Mat Min Exi Turns Passed 3563 | 97 1931 476 1059 Spaces Moved 2183 | 42 832 385 924 Core 2 | 2 . . . Treads 571 | 39 532 . . Legs . | . . . . Wheels 1610 | 1 300 385 924 Hover . | . . . . Flight . | . . . . Fastest Speed 50 | 50 115 100 80 Average Speed 134 | 152 182 111 99 Slowest Speed 240 | 160 240 115 110 Overloaded Moves . | . . . . Propulsion Burnouts . | . . . . Robots Hopped . | . . . . Cave-ins Triggered . | . . . . Exploration Rate (%) 66 | 3 99 92 71 Regions Visited 3 Branch Regions 2 Pre-discovered Areas 3 | . 1 1 1 Known Exits Taken 1 | . 1 . . Unknown Exits Taken 2 | 1 . 1 . Scrap Searched 1 | . . 1 . Spaces Dug . | . . . . Terrain Destroyed 43 | 5 22 . 16 Melee . | . . . . Projectile . | . . . . AOE 43 | 5 22 . 16 Terrain Rammed . | . . . . Walls Destroyed . | . . . . Machines Disabled . | . . . . Actions | -11 -10 -10 -10 --------- Run | Scr Mat Min Exi Total 2631 | 59 1115 411 1046 Wait 135 | . 79 7 49 Move 2180 | 41 831 384 924 Hop . | . . . . Pick Up 41 | 3 20 2 16 Fast Attach 18 | 8 9 . 1 Attach 8 | . 4 1 3 Detach 5 | 1 3 . 1 Swap 25 | . 15 4 6 Drop 40 | . 17 3 20 Fire 108 | 6 76 10 16 Melee 5 | . 1 . 4 Ram . | . . . . Kick . | . . . . Crush . | . . . . Escape Stasis . | . . . . Rewire . | . . . . Trap 66 | . 60 . 6 Miscellaneous . | . . . . Route ------- -11/Scrapyard -10/Materials (discovered 4 exits: [*Mat x3] / *Min) -10/Mines (discovered 3 exits: [*Mat x2] / *Exi) -10/Exiles (discovered 1 exit: [*Min]) History --------- Turn | Location | Event 30 | -11/Scrapyard | Discovered new exit (range 16) 98 | -11/Scrapyard | Entered Materials 312 | -10/Materials | Build established: Mutant 345 | -10/Materials | Discovered new exit (range 12) 692 | -10/Materials | Repaired Assault Rifle 754 | -10/Materials | Discovered new exit (range 12) 1036 | -10/Materials | Discovered new exit (range 11) 1774 | -10/Materials | Discovered new exit (range 5) 1964 | -10/Materials | Build established: Trapper-Mutant 1972 | -10/Materials | Identified exit to Mines 2029 | -10/Materials | Entered Mines 2055 | -10/Mines | Learned location of 1 exit from Materials 2079 | -10/Mines | Discovered new exit (range 9) 2086 | -10/Mines | Received a Rocket Launcher from a helpful Derelict 2276 | -10/Mines | Assembled infested the area 2291 | -10/Mines | Found a damaged Exp. Sensor Array with a note attached 2294 | -10/Mines | Found Prototype Device 2317 | -10/Mines | Build established: Mutant 2367 | -10/Mines | Core integrity fell below 50% 2423 | -10/Mines | Discovered new exit (range 8) 2478 | -10/Mines | Learned location of Storage (-9) 2500 | -10/Mines | Deemed a non-threat by the Exiles lab entrance 2500 | -10/Mines | Discovered new exit (range 5) 2505 | -10/Mines | Entered Exiles 2531 | -10/Exiles | Met 8R-AWN 2550 | -10/Exiles | Met EX-HEX 2601 | -10/Exiles | Met EX-DEC 2632 | -10/Exiles | Learned location of Zion (-7) 2685 | -10/Exiles | Discovered new exit (range 10) 2764 | -10/Exiles | Met EX-BIN 2778 | -10/Exiles | Aligned with FarCom system 2779 | -10/Exiles | Given EX-Vault access code 2800 | -10/Exiles | Opened EX-Vault 2810 | -10/Exiles | Found Gui. Plasma Cannon 2829 | -10/Exiles | Warned to stay clear of 0b10 Research branches 3350 | -10/Exiles | Build established: Scavenger-Mutant 3440 | -10/Exiles | Attacked by the Exiles 3547 | -10/Exiles | Core integrity fell below 20% 3564 | -10/Exiles | Destroyed by 8R-AWN with 8R-AWN's Boregun Last Messages --------------- 03548_ HV Slug penetrates Wall. 03551_ HV Slug penetrates Machine. 03551_ Penetrated by HV Slug. 03551_ HV Slug penetrates Wall. 03553_ Penetrated by HV Slug. 03553_ HV Slug penetrates Wall. 03555_ Wall collapses. 03555_ Penetrated by HV Slug. 03555_ HV Slug penetrates Wall. 03557_ Penetrated by HV Slug. 03562_ Destroyed 8R-AWN's Armor/TH. 03562_ Penetrated by HV Slug. 03562_ Wheel destroyed. 03562_ Penetrated by HV Slug. 03562_ Critical hit (Destroy). 03562_ Ion Engine destroyed. 03564_ Penetrated by HV Slug. 03564_ Critical hit (Destroy). 03564_ Imp. Assault Rifle destroyed. 03564_ Penetrated by HV Slug. Map ----- +----------------------------------------------------+ | ?????????????????????????????????????????????????? | | ?????????????????????????????????????????????????? | | ?????????????????????????????????????????????????? | | ?????????????????????????????????????????????????? | | ?????????????????????????????????????????????????? | | ?????????????????????????????????????????????????? | | ?????????????????????????????????????????????????? | | ?????????????????????????????????????????????????? | | ?????????????????????????????????????????????????? | | ?????????????????????????????????????????????????? | | ???????????????????????????????????????????????### | | ???????????????????????????????????????????????""" | | #####?????????????????????????????????????????"""" | | # ##???????????????????????????????????????#""X" | | #???????????????????????????????????????#" | | < #???????????????????????????????????????#" | | ###?????????????????????????????????????#"""" | | ! #??????????????????????????????????????#"## | | !! ##?????????????????????????????????????????? | | # ! #??????????????????????????????????????????? | | # ##?????????????????????????????????????????? | | ## #????????????#######??????????????????????? | | ?# #######??????#!!! "#??????????????????????? | | ?# /#""##?????# "#??????????????????????? | | ?## #?????# g #??????????????????????? | | ??##" ##???## @#????????????##????????? | | ??#"" #####" ; ??????????? """?????? | | ??#### ##" # #??????????" """#????? | | ?????## #"" #### #?????????" ?????? | | ??????#"## ###?# #???????"" ?????? | | ??????####### # #??# #??????"" "#????? | | ????????????### ##??# #????? ""?????? | | ???????#######" # # # #?????" "??????? | | ??????# !!""""" # #????# #??????? | | ??????#! "### ### ??### ###?#### | | ??????#! "#?# "##;##X# #"###""" | | ??????#! ##?## """""" | | ??????# !""""""###???#"# "" """ | | ??????#########??????###" " | | ???????????????????????### | | ??????????????????????????### % | | ????????????????????????????#" % | | ?????????????????????????????## | | ??????????????????????????????##" | | ???????????????????????????????#""" | | ??????????????????????????????##" | | ??????????????????????????????#"" ""# | | ?????????????????????????????##""" """## | | ?????????????????????????????#""" """##? | | ?????????????????????????????#""" ""#?? | +----------------------------------------------------+ Best States ------------- Heat Dissipation 25 Energy Generation 14 Energy Capacity 250 Matter Stores 300 Matter Capacity 300 Sight Range 16 Terrain Scan Range 16 Terrain Scan Density 10 Evasion (%) 44 Recoil Reduction 2 Trap Extractor Capacity 4 Item Schematics ----------------- None Robot Schematics ------------------ None Fabricated ------------ Nothing Alien Tech Used ----------------- None Achievements -------------- None Challenges ------------ None Game ------ Seed IonicCompactMediator Manual? 0 Play Time 00:29:35 Cumulative 474.0 hours Start 2022.04.27 @ 10:29:11 End 2022.04.27 @ 10:52:03 Sessions 1 Manual Loads 0 Difficulty Rogue Special Mode None Game No. 392 Rogue 392 Adventurer 0 Explorer 0 Win Type - Total 3 Types 2/0/0/1/0/0/0/0/0 Lore% 68 Gallery% 77 Achievement% 66 Wizard Run 0 Options --------- ASCII 0 Keyboard 1 Movement Numpad Keybinds 0 Fullscreen 1 Font 12/Terminus Map View 83x54 Tactical HUD 1 Map Filters NONE Filters NONE Steam 1 RUN: 72e9b601-a69b-459f-a966-f4534c14edc5